[Event "*** Titled Tuesday Blitz"]
[Site "Chess.com"]
[Date "2020.10.27"]
[Round "2"]
[White "BogdanBelyakov89"]
[Black "Smirnov_Pavel"]
[Result "1-0"]
[WhiteElo "2588"]
[BlackElo "2856"]
[TimeControl "180+1"]
[EndTime "10:18:33 PDT"]
[Termination "BogdanBelyakov89 won on time"]

1. e4 {[%clk 0:03:00.9]} 1... c5 {[%clk 0:02:59.2]} 2. Nf3 {[%clk 0:03:00.7]}
2... Nc6 {[%clk 0:02:58.6]} 3. d4 {[%clk 0:03:00.6]} 3... cxd4 {[%clk
0:02:58.4]} 4. Nxd4 {[%clk 0:03:01.5]} 4... Nf6 {[%clk 0:02:58.7]} 5. Nc3 {[%clk
0:03:01.4]} 5... e5 {[%clk 0:02:58.3]} 6. Ndb5 {[%clk 0:03:01.2]} 6... d6 {[%clk
0:02:58.1]} 7. Bg5 {[%clk 0:03:00]} 7... a6 {[%clk 0:02:57.9]} 8. Na3 {[%clk
0:02:59.6]} 8... b5 {[%clk 0:02:57.6]} 9. Bxf6 {[%clk 0:02:58.8]} 9... gxf6
{[%clk 0:02:58.4]} 10. Nd5 {[%clk 0:02:58.8]} 10... Bg7 {[%clk 0:02:58.7]} 11.
c3 {[%clk 0:02:57.9]} 11... f5 {[%clk 0:02:58.3]} 12. exf5 {[%clk 0:02:50.3]}
12... Bxf5 {[%clk 0:02:59.2]} 13. Nc2 {[%clk 0:02:49.9]} 13... Be6 {[%clk
0:02:58.3]} 14. Nce3 {[%clk 0:02:50]} 14... Ne7 {[%clk 0:02:57.4]} 15. g3 {[%clk
0:02:49.1]} 15... Nxd5 {[%clk 0:02:56.4]} 16. Nxd5 {[%clk 0:02:49.1]} 16... O-O
{[%clk 0:02:57]} 17. Bg2 {[%clk 0:02:48.9]} 17... a5 {[%clk 0:02:56.9]} 18. O-O
{[%clk 0:02:48.5]} 18... f5 {[%clk 0:02:56.4]} 19. Qd2 {[%clk 0:02:46.5]} 19...
Rb8 {[%clk 0:02:53]} 20. Rad1 {[%clk 0:02:45.9]} 20... e4 {[%clk 0:02:40.8]} 21.
Bh3 {[%clk 0:02:32.9]} 21... Kh8 {[%clk 0:02:35.9]} 22. b3 {[%clk 0:02:31.4]}
22... Be5 {[%clk 0:02:33.7]} 23. Bg2 {[%clk 0:02:23.2]} 23... Rc8 {[%clk
0:02:28]} 24. Rc1 {[%clk 0:02:19.6]} 24... Rc5 {[%clk 0:02:23.2]} 25. Nf4 {[%clk
0:02:19.2]} 25... Bg8 {[%clk 0:02:19.4]} 26. Rfd1 {[%clk 0:02:02.8]} 26... Qc7
{[%clk 0:02:12.1]} 27. Ng6+ {[%clk 0:01:53.3]} 27... hxg6 {[%clk 0:02:02.6]} 28.
Qh6+ {[%clk 0:01:53.1]} 28... Qh7 {[%clk 0:01:59.8]} 29. Qxf8 {[%clk 0:01:54]}
29... Qg7 {[%clk 0:01:46.4]} 30. Qd8 {[%clk 0:01:44.9]} 30... Qc7 {[%clk
0:01:41.2]} 31. Qg5 {[%clk 0:01:38.6]} 31... Kg7 {[%clk 0:01:38.9]} 32. h4
{[%clk 0:01:38]} 32... Bf6 {[%clk 0:01:33.9]} 33. Qe3 {[%clk 0:01:37.7]} 33...
d5 {[%clk 0:01:22.2]} 34. Bf1 {[%clk 0:01:24.5]} 34... Bxc3 {[%clk 0:00:37.7]}
35. h5 {[%clk 0:01:16.9]} 35... b4 {[%clk 0:00:33.4]} 36. Qg5 {[%clk 0:00:57.1]}
36... Qd6 {[%clk 0:00:28.7]} 37. hxg6 {[%clk 0:00:55.4]} 37... Qf6 {[%clk
0:00:25.9]} 38. Qf4 {[%clk 0:00:46.1]} 38... Kxg6 {[%clk 0:00:25]} 39. Be2
{[%clk 0:00:45.1]} 39... d4 {[%clk 0:00:20.4]} 40. Bc4 {[%clk 0:00:21.1]} 40...
Bxc4 {[%clk 0:00:18.5]} 41. bxc4 {[%clk 0:00:22]} 41... Rxc4 {[%clk 0:00:19.3]}
42. Kg2 {[%clk 0:00:22.1]} 42... Rc6 {[%clk 0:00:14.9]} 43. Rh1 {[%clk
0:00:21.2]} 43... Qg5 {[%clk 0:00:14.2]} 44. Qb8 {[%clk 0:00:20.7]} 44... f4
{[%clk 0:00:04]} 45. Qe8+ {[%clk 0:00:20.4]} 45... Kf5 {[%clk 0:00:03.7]} 46.
Qxc6 {[%clk 0:00:19.7]} 46... f3+ {[%clk 0:00:03.6]} 47. Kh2 {[%clk 0:00:14.9]}
47... Qd2 {[%clk 0:00:03.3]} 48. Qd5+ {[%clk 0:00:13.8]} 48... Kf6 {[%clk
0:00:03]} 49. Qd6+ {[%clk 0:00:14.1]} 1-0

[Event "*** Titled Tuesday Blitz"]
[Site "Chess.com"]
[Date "2020.10.27"]
[Round "2"]
[White "ARTHURMOTIVATOR"]
[Black "maciek_92"]
[Result "0-1"]
[WhiteElo "2358"]
[BlackElo "2699"]
[TimeControl "180+1"]
[EndTime "10:18:33 PDT"]
[Termination "maciek_92 won on time"]

1. e4 {[%clk 0:03:00.9]} 1... c5 {[%clk 0:02:59.8]} 2. b3 {[%clk 0:02:59.2]}
2... Nc6 {[%clk 0:02:57.7]} 3. Bb2 {[%clk 0:02:57.7]} 3... e6 {[%clk 0:02:55.8]}
4. Bb5 {[%clk 0:02:47.6]} 4... Qb6 {[%clk 0:02:49.9]} 5. Na3 {[%clk 0:02:37.2]}
5... a6 {[%clk 0:02:49.7]} 6. Bd3 {[%clk 0:02:11.9]} 6... Qc7 {[%clk 0:02:44.7]}
7. Nf3 {[%clk 0:02:10.6]} 7... b5 {[%clk 0:02:34.8]} 8. O-O {[%clk 0:02:08.2]}
8... Nf6 {[%clk 0:02:25]} 9. c4 {[%clk 0:02:06.7]} 9... b4 {[%clk 0:02:23.9]}
10. Nc2 {[%clk 0:02:06.7]} 10... Be7 {[%clk 0:02:13.1]} 11. e5 {[%clk
0:01:52.9]} 11... Ng4 {[%clk 0:02:12.5]} 12. Qe2 {[%clk 0:01:48.8]} 12... h5
{[%clk 0:02:05.9]} 13. h3 {[%clk 0:01:36.3]} 13... Nh6 {[%clk 0:02:06.2]} 14.
Be4 {[%clk 0:01:36.3]} 14... Bb7 {[%clk 0:02:06.7]} 15. d4 {[%clk 0:01:34.7]}
15... cxd4 {[%clk 0:02:06.7]} 16. Ncxd4 {[%clk 0:01:34]} 16... g5 {[%clk
0:01:43.5]} 17. Nxc6 {[%clk 0:01:22.7]} 17... Bxc6 {[%clk 0:01:36.2]} 18. Nd2
{[%clk 0:01:06.9]} 18... g4 {[%clk 0:01:30]} 19. Bxc6 {[%clk 0:01:02]} 19...
Qxc6 {[%clk 0:01:30.9]} 20. Qe4 {[%clk 0:00:52.8]} 20... Rc8 {[%clk 0:01:24]}
21. Qxc6 {[%clk 0:00:40.3]} 21... Rxc6 {[%clk 0:01:24.9]} 22. hxg4 {[%clk
0:00:40.2]} 22... hxg4 {[%clk 0:01:24.7]} 23. Ne4 {[%clk 0:00:35.3]} 23... Nf5
{[%clk 0:01:24.5]} 24. g3 {[%clk 0:00:34.5]} 24... Bc5 {[%clk 0:00:53.7]} 25.
Rad1 {[%clk 0:00:28.4]} 25... Ke7 {[%clk 0:00:47.2]} 26. Kg2 {[%clk 0:00:26.6]}
26... Ba7 {[%clk 0:00:40.8]} 27. a3 {[%clk 0:00:23.7]} 27... a5 {[%clk
0:00:39.1]} 28. axb4 {[%clk 0:00:21.9]} 28... axb4 {[%clk 0:00:40]} 29. Ra1
{[%clk 0:00:21.5]} 29... Bd4 {[%clk 0:00:39.9]} 30. Bxd4 {[%clk 0:00:17.1]}
30... Nxd4 {[%clk 0:00:40.8]} 31. Rfd1 {[%clk 0:00:17.2]} 31... Nf3 {[%clk
0:00:40.3]} 32. Ra7 {[%clk 0:00:14.1]} 32... Rh2+ {[%clk 0:00:38.4]} 33. Kf1
{[%clk 0:00:14.3]} 33... Rh1+ {[%clk 0:00:39]} 34. Ke2 {[%clk 0:00:14.6]} 34...
Rxd1 {[%clk 0:00:39.5]} 35. Kxd1 {[%clk 0:00:14.8]} 35... Nxe5 {[%clk
0:00:40.1]} 36. Kc2 {[%clk 0:00:13.2]} 36... f5 {[%clk 0:00:36.9]} 37. Nd2
{[%clk 0:00:11.9]} 37... Rd6 {[%clk 0:00:26.6]} 38. Rb7 {[%clk 0:00:11.5]} 38...
Nc6 {[%clk 0:00:26.8]} 39. c5 {[%clk 0:00:08.1]} 39... Rd5 {[%clk 0:00:26.7]}
40. Nc4 {[%clk 0:00:05.1]} 40... Rxc5 {[%clk 0:00:27]} 41. Kd3 {[%clk 0:00:04]}
41... Rd5+ {[%clk 0:00:22.1]} 42. Ke3 {[%clk 0:00:03.6]} 42... e5 {[%clk
0:00:21.1]} 43. Nb6 {[%clk 0:00:03.6]} 43... Rd4 {[%clk 0:00:20.5]} 44. Nc8+
{[%clk 0:00:03.2]} 44... Ke6 {[%clk 0:00:20.8]} 45. Nb6 {[%clk 0:00:03.7]} 45...
f4+ {[%clk 0:00:20.8]} 46. gxf4 {[%clk 0:00:02.8]} 46... exf4+ {[%clk
0:00:21.7]} 47. Ke2 {[%clk 0:00:03.6]} 47... Rd6 {[%clk 0:00:19.3]} 48. Nc4
{[%clk 0:00:04.5]} 48... Rd5 {[%clk 0:00:19.1]} 49. Rc7 {[%clk 0:00:03.3]} 49...
Nd4+ {[%clk 0:00:19]} 50. Kf1 {[%clk 0:00:02]} 50... Nxb3 {[%clk 0:00:17.8]} 51.
Rc8 {[%clk 0:00:02.4]} 51... Nd2+ {[%clk 0:00:17.6]} 0-1

[Event "*** Titled Tuesday Blitz"]
[Site "Chess.com"]
[Date "2020.10.27"]
[Round "2"]
[White "Volodar_Murzin"]
[Black "AnishOnYoutube"]
[Result "0-1"]
[WhiteElo "2614"]
[BlackElo "2971"]
[TimeControl "180+1"]
[EndTime "10:18:34 PDT"]
[Termination "AnishOnYoutube won on time"]

1. e4 {[%clk 0:03:00.9]} 1... c5 {[%clk 0:02:59.9]} 2. Nf3 {[%clk 0:03:00.6]}
2... d6 {[%clk 0:03:00.5]} 3. Bb5+ {[%clk 0:02:57.1]} 3... Nd7 {[%clk 0:03:01]}
4. O-O {[%clk 0:02:56.4]} 4... a6 {[%clk 0:03:01.3]} 5. Bd3 {[%clk 0:02:55.9]}
5... Ngf6 {[%clk 0:02:59.9]} 6. c3 {[%clk 0:02:55.3]} 6... b5 {[%clk 0:02:42.4]}
7. Bc2 {[%clk 0:02:54.3]} 7... Bb7 {[%clk 0:02:42.3]} 8. Qe2 {[%clk 0:02:38.6]}
8... e6 {[%clk 0:02:40.8]} 9. d4 {[%clk 0:02:35.2]} 9... Be7 {[%clk 0:02:35.8]}
10. Nbd2 {[%clk 0:02:33.9]} 10... cxd4 {[%clk 0:02:26.4]} 11. cxd4 {[%clk
0:02:30.5]} 11... Qc7 {[%clk 0:02:15]} 12. Bd3 {[%clk 0:02:28.6]} 12... O-O
{[%clk 0:02:11]} 13. Re1 {[%clk 0:02:18.5]} 13... Rfe8 {[%clk 0:02:04.2]} 14. a4
{[%clk 0:02:00.1]} 14... b4 {[%clk 0:01:37.9]} 15. Nb3 {[%clk 0:01:50.9]} 15...
e5 {[%clk 0:01:37.2]} 16. d5 {[%clk 0:01:48.7]} 16... Nc5 {[%clk 0:01:36.4]} 17.
Nxc5 {[%clk 0:01:46.5]} 17... Qxc5 {[%clk 0:01:37.3]} 18. Be3 {[%clk 0:01:44.3]}
18... Qc7 {[%clk 0:01:33.5]} 19. Rec1 {[%clk 0:01:41.2]} 19... Qd8 {[%clk
0:01:33.6]} 20. a5 {[%clk 0:01:40.4]} 20... Nd7 {[%clk 0:01:28.9]} 21. Rc4
{[%clk 0:01:30.5]} 21... b3 {[%clk 0:01:08.5]} 22. Rb4 {[%clk 0:01:23.9]} 22...
Bc8 {[%clk 0:01:06.8]} 23. Rxb3 {[%clk 0:01:20.9]} 23... Bf8 {[%clk 0:00:59.1]}
24. Nd2 {[%clk 0:01:08.8]} 24... g6 {[%clk 0:00:53]} 25. f3 {[%clk 0:00:53.5]}
25... Nc5 {[%clk 0:00:38.9]} 26. Bxc5 {[%clk 0:00:39.1]} 26... dxc5 {[%clk
0:00:39.8]} 27. Kh1 {[%clk 0:00:36.8]} 27... Ra7 {[%clk 0:00:33]} 28. Rb6 {[%clk
0:00:25.5]} 28... Qg5 {[%clk 0:00:32.6]} 29. Nc4 {[%clk 0:00:21.7]} 29... h5
{[%clk 0:00:29.8]} 30. Qe3 {[%clk 0:00:13.4]} 30... Qd8 {[%clk 0:00:26.7]} 31.
Rd1 {[%clk 0:00:08.1]} 31... h4 {[%clk 0:00:27]} 32. d6 {[%clk 0:00:08.2]} 32...
h3 {[%clk 0:00:25.9]} 33. g3 {[%clk 0:00:08.4]} 33... Be6 {[%clk 0:00:20.6]} 34.
Qxc5 {[%clk 0:00:07.5]} 34... Qf6 {[%clk 0:00:18.5]} 35. Qe3 {[%clk 0:00:07.7]}
35... Bh6 {[%clk 0:00:17]} 36. Qe2 {[%clk 0:00:06.8]} 36... Rc8 {[%clk
0:00:15.5]} 37. Ne3 {[%clk 0:00:06.6]} 37... Rc5 {[%clk 0:00:10.6]} 38. b4
{[%clk 0:00:02.7]} 38... Rc3 {[%clk 0:00:10.9]} 39. Rb8+ {[%clk 0:00:02.4]}
39... Kg7 {[%clk 0:00:10.5]} 40. Rb6 {[%clk 0:00:03.3]} 40... Ra3 {[%clk
0:00:07.5]} 41. Ng4 {[%clk 0:00:03.4]} 41... Bxg4 {[%clk 0:00:07.4]} 42. fxg4
{[%clk 0:00:04.3]} 42... Ra2 {[%clk 0:00:07.3]} 43. Rf1 {[%clk 0:00:03.3]} 43...
Rxe2 {[%clk 0:00:02.9]} 44. Rxf6 {[%clk 0:00:03.5]} 44... Re3 {[%clk 0:00:02.3]}
45. d7 {[%clk 0:00:02.4]} 45... Rxd3 {[%clk 0:00:02.4]} 46. Rbd6 {[%clk
0:00:01.7]} 46... Rxd7 {[%clk 0:00:03]} 0-1

[Event "*** Titled Tuesday Blitz"]
[Site "Chess.com"]
[Date "2020.10.27"]
[Round "2"]
[White "Casper_Schoppen"]
[Black "BlackBoarder"]
[Result "1-0"]
[WhiteElo "2956"]
[BlackElo "2605"]
[TimeControl "180+1"]
[EndTime "10:18:34 PDT"]
[Termination "Casper_Schoppen won by resignation"]

1. c4 {[%clk 0:03:00.9]} 1... e6 {[%clk 0:02:58.5]} 2. g3 {[%clk 0:02:58.9]}
2... Nf6 {[%clk 0:02:52.6]} 3. Bg2 {[%clk 0:02:58.7]} 3... d5 {[%clk 0:02:51.1]}
4. Nf3 {[%clk 0:02:58.6]} 4... d4 {[%clk 0:02:47.7]} 5. O-O {[%clk 0:02:57.8]}
5... c5 {[%clk 0:02:48]} 6. e3 {[%clk 0:02:57.7]} 6... Nc6 {[%clk 0:02:47.7]} 7.
exd4 {[%clk 0:02:52.2]} 7... cxd4 {[%clk 0:02:47.8]} 8. d3 {[%clk 0:02:52.4]}
8... Bd6 {[%clk 0:02:44.2]} 9. Na3 {[%clk 0:02:52.3]} 9... a6 {[%clk 0:02:42.8]}
10. Nc2 {[%clk 0:02:52]} 10... e5 {[%clk 0:02:42.1]} 11. Bg5 {[%clk 0:02:51.7]}
11... O-O {[%clk 0:02:38.1]} 12. Nd2 {[%clk 0:02:51.4]} 12... h6 {[%clk
0:02:33.5]} 13. Bxf6 {[%clk 0:02:50.9]} 13... Qxf6 {[%clk 0:02:34.4]} 14. a3
{[%clk 0:02:42.7]} 14... a5 {[%clk 0:02:12.1]} 15. Re1 {[%clk 0:02:42.4]} 15...
Bf5 {[%clk 0:02:06.5]} 16. Ne4 {[%clk 0:02:41.6]} 16... Qg6 {[%clk 0:02:05]} 17.
Qd2 {[%clk 0:02:27.9]} 17... a4 {[%clk 0:01:49.4]} 18. Nb4 {[%clk 0:02:27.2]}
18... Nxb4 {[%clk 0:01:41.7]} 19. axb4 {[%clk 0:02:25.7]} 19... Be7 {[%clk
0:01:32.1]} 20. Ra3 {[%clk 0:02:09.4]} 20... Qb6 {[%clk 0:01:22.8]} 21. c5
{[%clk 0:02:00.2]} 21... Qb5 {[%clk 0:01:22]} 22. Rea1 {[%clk 0:01:46.9]} 22...
Be6 {[%clk 0:01:21.4]} 23. Bf3 {[%clk 0:01:39]} 23... Bb3 {[%clk 0:01:14.2]} 24.
Bd1 {[%clk 0:01:36.7]} 24... Bxd1 {[%clk 0:01:01.2]} 25. Qxd1 {[%clk 0:01:27.4]}
25... Qxb4 {[%clk 0:00:58.9]} 26. Rxa4 {[%clk 0:01:13.5]} 26... Rxa4 {[%clk
0:00:58.1]} 27. Qxa4 {[%clk 0:01:13.7]} 27... Qxb2 {[%clk 0:00:50.4]} 28. Re1
{[%clk 0:01:13.3]} 28... Rd8 {[%clk 0:00:32.7]} 29. Qc4 {[%clk 0:01:06.9]} 29...
Qa3 {[%clk 0:00:24.9]} 30. Rb1 {[%clk 0:01:05.7]} 30... Qa7 {[%clk 0:00:19]} 31.
h4 {[%clk 0:01:02.9]} 31... Bf8 {[%clk 0:00:12.8]} 32. h5 {[%clk 0:01:01.4]}
32... Rd7 {[%clk 0:00:13.1]} 33. Kg2 {[%clk 0:00:59.8]} 33... Qa6 {[%clk
0:00:08]} 34. Qc2 {[%clk 0:00:43.8]} 34... f5 {[%clk 0:00:06.2]} 35. Rb6 {[%clk
0:00:34.5]} 35... Qa3 {[%clk 0:00:03.9]} 36. Qc4+ {[%clk 0:00:34.4]} 36... Kh7
{[%clk 0:00:03.4]} 37. Qe6 {[%clk 0:00:30.8]} 37... fxe4 {[%clk 0:00:02.1]} 38.
Qxd7 {[%clk 0:00:28.5]} 38... Qxc5 {[%clk 0:00:02.3]} 39. Qf5+ {[%clk
0:00:27.1]} 39... Kh8 {[%clk 0:00:02.7]} 40. Rxb7 {[%clk 0:00:21.6]} 40... exd3
{[%clk 0:00:03.2]} 41. Rb8 {[%clk 0:00:21.5]} 41... Kg8 {[%clk 0:00:02.7]} 42.
Qxd3 {[%clk 0:00:20.4]} 42... Qd5+ {[%clk 0:00:03.2]} 43. Qf3 {[%clk 0:00:18]}
43... Qxf3+ {[%clk 0:00:01.4]} 44. Kxf3 {[%clk 0:00:18.9]} 44... Kf7 {[%clk
0:00:01.9]} 45. Ke4 {[%clk 0:00:18.6]} 45... Bd6 {[%clk 0:00:02.4]} 46. Rb7+
{[%clk 0:00:18.5]} 46... Kf6 {[%clk 0:00:02.9]} 47. Rb6 {[%clk 0:00:18.4]} 47...
Ke7 {[%clk 0:00:03.3]} 48. Kd5 {[%clk 0:00:18.1]} 48... d3 {[%clk 0:00:01.1]}
49. Rxd6 {[%clk 0:00:17.5]} 49... d2 {[%clk 0:00:01.2]} 50. Kxe5 {[%clk
0:00:17.9]} 50... d1=Q {[%clk 0:00:01.3]} 51. Rxd1 {[%clk 0:00:17.8]} 1-0

[Event "*** Titled Tuesday Blitz"]
[Site "Chess.com"]
[Date "2020.10.27"]
[Round "2"]
[White "Zmof"]
[Black "Legendinunknown"]
[Result "0-1"]
[WhiteElo "2187"]
[BlackElo "2653"]
[TimeControl "180+1"]
[EndTime "10:18:34 PDT"]
[Termination "Legendinunknown won on time"]

1. e4 {[%clk 0:03:00.2]} 1... e5 {[%clk 0:02:58.7]} 2. Bc4 {[%clk 0:02:59.2]}
2... Nf6 {[%clk 0:02:58.1]} 3. d3 {[%clk 0:02:59]} 3... c6 {[%clk 0:02:57.7]} 4.
Nf3 {[%clk 0:02:58.4]} 4... d5 {[%clk 0:02:57.7]} 5. Bb3 {[%clk 0:02:58.9]} 5...
Bd6 {[%clk 0:02:56.4]} 6. exd5 {[%clk 0:02:57.7]} 6... cxd5 {[%clk 0:02:56.2]}
7. Bg5 {[%clk 0:02:53.6]} 7... Be6 {[%clk 0:02:55.9]} 8. Nc3 {[%clk 0:02:52.1]}
8... Qa5 {[%clk 0:02:40.2]} 9. O-O {[%clk 0:02:51.3]} 9... Nbd7 {[%clk
0:02:39.5]} 10. Re1 {[%clk 0:02:43.7]} 10... h6 {[%clk 0:02:36.7]} 11. Bxf6
{[%clk 0:02:41.9]} 11... gxf6 {[%clk 0:02:36.2]} 12. d4 {[%clk 0:02:39.7]} 12...
e4 {[%clk 0:02:29.6]} 13. Nh4 {[%clk 0:02:39.2]} 13... O-O-O {[%clk 0:02:22.9]}
14. Qh5 {[%clk 0:02:25.1]} 14... Nb6 {[%clk 0:02:20.6]} 15. Nf5 {[%clk
0:02:21.8]} 15... Bb4 {[%clk 0:02:06.3]} 16. Ng7 {[%clk 0:02:02]} 16... Kb8
{[%clk 0:01:48]} 17. Nxe6 {[%clk 0:02:01.2]} 17... fxe6 {[%clk 0:01:48.9]} 18.
Qf7 {[%clk 0:01:59.6]} 18... Rhf8 {[%clk 0:01:34]} 19. Qxe6 {[%clk 0:01:58.9]}
19... Bxc3 {[%clk 0:01:32.8]} 20. bxc3 {[%clk 0:01:57.9]} 20... Qxc3 {[%clk
0:01:33.7]} 21. a4 {[%clk 0:01:48.8]} 21... Qxd4 {[%clk 0:01:05.1]} 22. a5
{[%clk 0:01:48]} 22... Nc8 {[%clk 0:01:05.1]} 23. a6 {[%clk 0:01:45.4]} 23...
Qe5 {[%clk 0:01:02.5]} 24. Qxe5+ {[%clk 0:01:39]} 24... fxe5 {[%clk 0:01:01.4]}
25. axb7 {[%clk 0:01:39.7]} 25... Kxb7 {[%clk 0:01:01.3]} 26. Ra5 {[%clk
0:01:36.4]} 26... Nb6 {[%clk 0:01:01.1]} 27. Rea1 {[%clk 0:01:36.4]} 27... d4
{[%clk 0:00:48.7]} 28. Rxa7+ {[%clk 0:01:31]} 28... Kc6 {[%clk 0:00:48.5]} 29.
Rh7 {[%clk 0:01:28]} 29... Rd6 {[%clk 0:00:45]} 30. Re1 {[%clk 0:01:01]} 30...
d3 {[%clk 0:00:40.8]} 31. cxd3 {[%clk 0:00:54.5]} 31... exd3 {[%clk 0:00:41.7]}
32. Rxe5 {[%clk 0:00:43.8]} 32... d2 {[%clk 0:00:40.7]} 33. Bd1 {[%clk
0:00:43.2]} 33... Ra8 {[%clk 0:00:33.1]} 34. Bf3+ {[%clk 0:00:37.8]} 34... Nd5
{[%clk 0:00:32.6]} 35. g4 {[%clk 0:00:13.4]} 35... Ra1+ {[%clk 0:00:20.8]} 36.
Kg2 {[%clk 0:00:13.7]} 36... d1=Q {[%clk 0:00:20.9]} 37. Bxd1 {[%clk 0:00:13.6]}
37... Rxd1 {[%clk 0:00:21.8]} 38. h4 {[%clk 0:00:10.7]} 38... Rd2 {[%clk
0:00:21.4]} 39. g5 {[%clk 0:00:09]} 39... h5 {[%clk 0:00:19.9]} 40. Kg3 {[%clk
0:00:07.1]} 40... Rd3+ {[%clk 0:00:19.3]} 41. f3 {[%clk 0:00:07]} 41... Ne3
{[%clk 0:00:18]} 42. Rxh5 {[%clk 0:00:05.6]} 42... Nf1+ {[%clk 0:00:17.7]} 43.
Kg4 {[%clk 0:00:05.3]} 43... Nh2+ {[%clk 0:00:17.4]} 44. Kf4 {[%clk 0:00:05]}
44... Nxf3 {[%clk 0:00:17.6]} 45. Ra5 {[%clk 0:00:02.9]} 45... R6d4+ {[%clk
0:00:17.7]} 46. Kf5 {[%clk 0:00:02.9]} 46... Nxh4+ {[%clk 0:00:17.9]} 47. Kf6
{[%clk 0:00:01.3]} 47... Rf4+ {[%clk 0:00:17.5]} 48. Kg7 {[%clk 0:00:01.4]}
48... Rd7+ {[%clk 0:00:17]} 0-1

[Event "*** Titled Tuesday Blitz"]
[Site "Chess.com"]
[Date "2020.10.27"]
[Round "2"]
[White "Zq1"]
[Black "Semen_Khanin"]
[Result "0-1"]
[WhiteElo "2497"]
[BlackElo "2747"]
[TimeControl "180+1"]
[EndTime "10:18:35 PDT"]
[Termination "Semen_Khanin won by checkmate"]

1. d4 {[%clk 0:03:00.9]} 1... Nf6 {[%clk 0:02:59.6]} 2. c4 {[%clk 0:03:00.1]}
2... g6 {[%clk 0:03:00]} 3. Nc3 {[%clk 0:02:59.2]} 3... d5 {[%clk 0:03:00.7]} 4.
Nf3 {[%clk 0:02:55.9]} 4... Bg7 {[%clk 0:03:00.6]} 5. cxd5 {[%clk 0:02:55.5]}
5... Nxd5 {[%clk 0:03:00.7]} 6. Bd2 {[%clk 0:02:55.7]} 6... O-O {[%clk
0:02:56.7]} 7. Rc1 {[%clk 0:02:54.8]} 7... Nb6 {[%clk 0:02:51.4]} 8. Bg5 {[%clk
0:02:54]} 8... Bg4 {[%clk 0:02:46.2]} 9. e3 {[%clk 0:02:52.2]} 9... h6 {[%clk
0:02:44]} 10. Bf4 {[%clk 0:02:51.6]} 10... c6 {[%clk 0:02:38.3]} 11. Be2 {[%clk
0:02:50.4]} 11... N8d7 {[%clk 0:02:37.2]} 12. O-O {[%clk 0:02:43.1]} 12... Bxf3
{[%clk 0:02:35.5]} 13. Bxf3 {[%clk 0:02:42.5]} 13... e5 {[%clk 0:02:36.1]} 14.
dxe5 {[%clk 0:02:42.2]} 14... Nxe5 {[%clk 0:02:36.4]} 15. Be2 {[%clk 0:02:37.9]}
15... Qe7 {[%clk 0:02:33.9]} 16. Qb3 {[%clk 0:02:32.4]} 16... Rad8 {[%clk
0:02:31.7]} 17. Rfd1 {[%clk 0:02:29.6]} 17... h5 {[%clk 0:02:30.1]} 18. h3
{[%clk 0:02:28.5]} 18... Rxd1+ {[%clk 0:02:24.5]} 19. Rxd1 {[%clk 0:02:27.6]}
19... Rd8 {[%clk 0:02:25.1]} 20. Rxd8+ {[%clk 0:02:14.4]} 20... Qxd8 {[%clk
0:02:24.9]} 21. a4 {[%clk 0:02:06.8]} 21... Qd2 {[%clk 0:02:07.7]} 22. a5 {[%clk
0:02:02.8]} 22... Nd5 {[%clk 0:02:07.8]} 23. Nxd5 {[%clk 0:01:59]} 23... Qxe2
{[%clk 0:01:52.9]} 24. Ne7+ {[%clk 0:01:49]} 24... Kf8 {[%clk 0:01:52.7]} 25.
Qxb7 {[%clk 0:01:44.2]} 25... Qe1+ {[%clk 0:01:50.8]} 26. Kh2 {[%clk 0:01:43]}
26... Qxf2 {[%clk 0:01:50]} 27. Nxg6+ {[%clk 0:01:04.4]} 27... Nxg6 {[%clk
0:01:01.4]} 28. Qb8+ {[%clk 0:01:02.8]} 28... Ke7 {[%clk 0:01:01.6]} 29. Qd6+
{[%clk 0:01:00.2]} 29... Ke8 {[%clk 0:01:00.2]} 30. Qxc6+ {[%clk 0:00:51.2]}
30... Kf8 {[%clk 0:00:50.2]} 31. Qa8+ {[%clk 0:00:47.5]} 31... Ke7 {[%clk
0:00:48.9]} 32. Qxa7+ {[%clk 0:00:47.3]} 32... Ke6 {[%clk 0:00:28.4]} 33. Qa6+
{[%clk 0:00:40.9]} 33... Kd5 {[%clk 0:00:23.1]} 34. Qb5+ {[%clk 0:00:36.1]}
34... Ke4 {[%clk 0:00:14.9]} 35. Qc4+ {[%clk 0:00:33.6]} 35... Kf5 {[%clk
0:00:15.2]} 36. Qd3+ {[%clk 0:00:29.8]} 36... Ke6 {[%clk 0:00:15]} 37. Qc4+
{[%clk 0:00:27.8]} 37... Ke7 {[%clk 0:00:14.3]} 38. Qc7+ {[%clk 0:00:27.1]}
38... Ke6 {[%clk 0:00:14.7]} 39. Qd6+ {[%clk 0:00:25.6]} 39... Kf5 {[%clk
0:00:14.9]} 40. Qd5+ {[%clk 0:00:24.6]} 40... Be5 {[%clk 0:00:14.9]} 41. Bxe5
{[%clk 0:00:20.4]} 41... Nxe5 {[%clk 0:00:14.1]} 42. a6 {[%clk 0:00:15.8]} 42...
Qxe3 {[%clk 0:00:14.2]} 43. b4 {[%clk 0:00:13.6]} 43... h4 {[%clk 0:00:08.5]}
44. b5 {[%clk 0:00:11.1]} 44... Kf4 {[%clk 0:00:08.7]} 45. b6 {[%clk 0:00:08.7]}
45... Qxb6 {[%clk 0:00:07.9]} 46. Qd2+ {[%clk 0:00:08.7]} 46... Kf5 {[%clk
0:00:07.9]} 47. Qc2+ {[%clk 0:00:08.3]} 47... Ke6 {[%clk 0:00:07.9]} 48. Qa2+
{[%clk 0:00:08.1]} 48... Kf6 {[%clk 0:00:07.5]} 49. a7 {[%clk 0:00:08.1]} 49...
Qd6 {[%clk 0:00:06.9]} 50. a8=Q {[%clk 0:00:07.3]} 50... Nf3+ {[%clk 0:00:07]}
51. Kh1 {[%clk 0:00:03.5]} 51... Qh2# {[%clk 0:00:07.5]} 0-1